fUST/lending_fUST_20251231
["ID","MTS","AMOUNT","RATE_DAILY","PERIOD"]
[400101315,1767112238897,-687.8992864,0.00024698,2]
[400101316,1767112238909,-1792.28079187,0.00024698,2]
[400101317,1767112238920,-1792.28079187,0.00024698,2]
[400101318,1767112238932,-1792.28079187,0.00024698,2]
[400101319,1767112238943,-1792.28079187,0.00024698,2]
[400101320,1767112238956,-1792.28079187,0.00024698,2]
[400101321,1767112238966,-1792.28079187,0.00024698,2]
[400101322,1767112238978,-1792.28079187,0.00024698,2]
[400101323,1767112238989,-1792.28079187,0.00024698,2]
[400101324,1767112239000,-1792.28079187,0.00024698,2]
[400101325,1767112239013,-1792.28079187,0.00024698,2]
[400101326,1767112239024,-1792.28079187,0.00024698,2]
[400101327,1767112239035,-1792.28079187,0.00024698,2]
[400101328,1767112239048,-1792.28079187,0.00024698,2]
[400101329,1767112239059,-1792.28079187,0.00024698,2]
[400101330,1767112239072,-1792.28079187,0.00024698,2]
[400101331,1767112239083,-1792.28079187,0.00024698,2]
[400101332,1767112239094,-1792.28079187,0.00024698,2]
[400101333,1767112239106,-1792.28079187,0.00024698,2]
[400101334,1767112239117,-1792.28079187,0.00024698,2]
[400101335,1767112239129,-1792.28079187,0.00024698,2]
[400101336,1767112239140,-1792.28079187,0.00024698,2]
[400101337,1767112239151,-1792.28079187,0.00024698,2]
[400101338,1767112239162,-1792.28079187,0.00024698,2]
[400101339,1767112239173,-1792.28079187,0.00024698,2]
[400101340,1767112239184,-1792.28079187,0.00024698,2]
[400101341,1767112239195,-1792.28079187,0.00024698,2]
[400101342,1767112239206,-1792.28079187,0.00024698,2]
[400101343,1767112239216,-1792.28079187,0.00024698,2]
[400101344,1767112239227,-1792.28079187,0.00024698,2]
[400101345,1767112239238,-1792.28079187,0.00024698,2]
[400101346,1767112239248,-1792.28079187,0.00024698,2]
[400101347,1767112239259,-1792.28079187,0.00024698,2]
[400101348,1767112239270,-1792.28079187,0.00024698,2]
[400101349,1767112239281,-1792.28079187,0.00024698,2]
[400101350,1767112239292,-1792.28079187,0.00024698,2]
[400101351,1767112239303,-1792.28079187,0.00024698,2]
[400101352,1767112239313,-1792.28079187,0.00024698,2]
[400101353,1767112239324,-1792.28079187,0.00024698,2]
[400101354,1767112239335,-1792.28079187,0.00024698,2]
[400101355,1767112239346,-1792.28079187,0.00024698,2]
[400101356,1767112239356,-1792.28079187,0.00024698,2]
[400101357,1767112239367,-1792.28079187,0.00024698,2]
[400101358,1767112239379,-1792.28079187,0.00024698,2]
[400101359,1767112239390,-1792.28079187,0.00024698,2]
[400101360,1767112239401,-1792.28079187,0.00024698,2]
[400101361,1767112239411,-1792.28079187,0.00024698,2]
[400101362,1767112239422,-1792.28079187,0.00024698,2]
[400101363,1767112239433,-1792.28079187,0.00024698,2]
[400101364,1767112239443,-1000000.0,0.000247,2]
[400101365,1767112239454,-323.02040379,0.0002472,2]
[400101366,1767112239465,-323.02040379,0.00024743,2]
[400101367,1767112239476,-323.02040379,0.00024765,2]
[400101368,1767112239486,-323.02040379,0.00024788,2]
[400101369,1767112239497,-500.0,0.00024798,2]
[400101370,1767112239508,-164.44,0.00024798,2]
[400101371,1767112239518,-974.03,0.00024798,2]
[400101372,1767112239529,-500.0,0.00024798,2]
[400101373,1767112239541,-500.0,0.00024799,2]
[400101374,1767112239685,-101318.74889797,0.000248,2]
[400101375,1767112239778,-258.5388667,0.000248,2]
[400101399,1767112240486,-2150.51,0.000248,2]
[400101484,1767112245733,-20.02524255,0.000248,2]
[400101487,1767112246962,-9959.35628308,0.000248,2]
[400101488,1767112246987,-1791.0,0.000248,2]
[400101489,1767112397522,150.0,0.00028767,120]
[400101528,1767113282220,900.0,0.00028,120]
[400101529,1767113353985,250.0,0.00025,120]
[400101530,1767113367151,-424.159394,0.00013699,2]
[400101531,1767113367175,-150.0,0.00015321,2]
[400101532,1767113403551,500.0,0.00013273,2]
[400101533,1767113403584,1000.0,0.00013821,2]
[400101534,1767113403631,1500.0,0.00014368,2]
[400101535,1767113403690,1184.93164928,0.00014916,2]
[400101578,1767113432212,-487.13307197,0.00014916,2]
[400101604,1767113436322,250.0,0.00028,120]
[400101634,1767113438484,-330.83728204,0.00014916,2]
[400101636,1767113438495,-177.0,0.00017321,2]
[400101637,1767113438505,-674.0,0.00017321,2]
[400101638,1767113438514,-204.0,0.00019321,2]
[400101639,1767113438524,-424.159394,0.00020187,2]
[400101640,1767113438533,-231.0,0.00021321,2]
[400101641,1767113438542,-257.2775429,0.00023,2]
[400101642,1767113438552,-220.50566999,0.00023216,2]
[400101643,1767113438562,-258.0,0.00023321,2]
[400101644,1767113438571,-463.47516561,0.00024491,2]
[400101646,1767113438581,-223.8254572,0.00024491,2]
[400101647,1767113438590,-660.42482611,0.00024491,2]
[400101648,1767113438599,-660.42482611,0.00024491,2]
[400101649,1767113438610,-660.42482611,0.00024491,2]
[400101650,1767113438620,-660.42482611,0.00024491,2]
[400101651,1767113438629,-660.42482611,0.00024491,2]
[400101652,1767113438638,-660.42482611,0.00024491,2]
[400101653,1767113438648,-660.42482611,0.00024491,2]
[400101654,1767113438658,-660.42482611,0.00024491,2]
[400101655,1767113438667,-660.42482611,0.00024491,2]
[400101656,1767113438677,-660.42482611,0.00024491,2]
[400101657,1767113438686,-660.42482611,0.00024491,2]
[400101658,1767113438696,-1792.28079187,0.00024491,2]
[400101659,1767113438705,-660.42482611,0.00024491,2]
[400101660,1767113438714,-1792.28079187,0.00024491,2]
[400101661,1767113438723,-660.42482611,0.00024491,2]
[400101662,1767113438732,-1792.28079187,0.00024491,2]
[400101663,1767113438741,-660.42482611,0.00024491,2]
[400101664,1767113438751,-1792.28079187,0.00024491,2]
[400101665,1767113438760,-1792.28079187,0.00024491,2]
[400101666,1767113438770,-1792.28079187,0.00024491,2]
[400101667,1767113438779,-660.42482611,0.00024491,2]
[400101668,1767113438789,-1792.28079187,0.00024491,2]
[400101669,1767113438798,-1792.28079187,0.00024491,2]
[400101670,1767113438807,-1792.28079187,0.00024491,2]
[400101671,1767113438816,-1792.28079187,0.00024491,2]
[400101672,1767113438826,-1792.28079187,0.00024491,2]
[400101673,1767113438835,-1792.28079187,0.00024491,2]
[400101674,1767113438845,-1792.28079187,0.00024491,2]
[400101675,1767113438855,-1792.28079187,0.00024491,2]
[400101676,1767113438864,-1792.28079187,0.00024491,2]
[400101677,1767113438873,-1792.28079187,0.00024491,2]
[400101678,1767113438882,-1792.28079187,0.00024491,2]
[400101679,1767113438892,-1792.28079187,0.00024491,2]
[400101680,1767113438905,-1792.28079187,0.00024491,2]
[400101681,1767113438914,-1792.28079187,0.00024491,2]
[400101682,1767113438923,-1792.28079187,0.00024491,2]
[400101683,1767113438932,-1792.28079187,0.00024491,2]
[400101684,1767113438942,-1792.28079187,0.00024491,2]
[400101685,1767113438951,-1792.28079187,0.00024491,2]
[400101686,1767113438960,-1792.28079187,0.00024491,2]
[400101687,1767113438970,-1792.28079187,0.00024491,2]
[400101688,1767113438979,-1792.28079187,0.00024491,2]
[400101689,1767113438989,-1792.28079187,0.00024491,2]
[400101690,1767113438999,-1792.28079187,0.00024491,2]
[400101691,1767113439012,-1792.28079187,0.00024491,2]
[400101692,1767113439022,-1792.28079187,0.00024491,2]
[400101693,1767113439032,-1792.28079187,0.00024491,2]
[400101694,1767113439041,-1792.28079187,0.00024491,2]
[400101695,1767113439052,-1792.28079187,0.00024491,2]
[400101696,1767113439062,-1792.28079187,0.00024491,2]
[400101697,1767113439072,-1792.28079187,0.00024491,2]
[400101698,1767113439083,-1792.28079187,0.00024491,2]
[400101699,1767113439095,-1792.28079187,0.00024491,2]
[400101700,1767113439105,-1792.28079187,0.00024491,2]
[400101701,1767113439115,-1792.28079187,0.00024491,2]
[400101702,1767113439125,-1792.28079187,0.00024491,2]
[400101703,1767113439135,-1792.28079187,0.00024491,2]
[400101704,1767113439146,-1792.28079187,0.00024491,2]
[400101705,1767113439156,-1792.28079187,0.00024491,2]
[400101706,1767113439166,-1792.28079187,0.00024491,2]
[400101707,1767113439177,-1792.28079187,0.00024491,2]
[400101708,1767113439187,-1792.28079187,0.00024491,2]
[400101709,1767113439197,-1792.28079187,0.00024491,2]
[400101710,1767113439207,-1792.28079187,0.00024491,2]
[400101711,1767113439216,-1792.28079187,0.00024491,2]
[400101712,1767113439226,-1792.28079187,0.00024491,2]
[400101713,1767113439236,-1792.28079187,0.00024491,2]
[400101714,1767113439245,-1792.28079187,0.00024491,2]
[400101715,1767113439256,-1792.28079187,0.00024491,2]
[400101716,1767113439266,-1792.28079187,0.00024491,2]
[400101717,1767113439276,-1792.28079187,0.00024491,2]
[400101718,1767113439286,-1792.28079187,0.00024491,2]
[400101719,1767113439295,-1792.28079187,0.00024491,2]
[400101720,1767113439305,-1792.28079187,0.00024491,2]
[400101721,1767113439314,-1792.28079187,0.00024491,2]
[400101722,1767113439324,-1792.28079187,0.00024491,2]
[400101723,1767113439333,-1792.28079187,0.00024491,2]
[400101724,1767113439445,-1792.28079187,0.00024491,2]
[400101725,1767113439461,-1792.28079187,0.00024491,2]
[400101726,1767113439471,-1792.28079187,0.00024491,2]
[400101727,1767113439480,-1792.28079187,0.00024491,2]
[400101728,1767113439490,-2523.37652225,0.00024491,2]
[400101729,1767113439499,-323.02040382,0.00024491,2]
[400101730,1767113439508,-300.0,0.00024491,2]
[400101731,1767113439518,-1200.0,0.00024491,2]
[400101732,1767113439527,-1000000.0,0.00024492,2]
[400101733,1767113439537,-323.02040379,0.00024536,2]
[400101734,1767113439546,-1041.66666667,0.00024551,2]
[400101735,1767113439556,-323.02040379,0.00024582,2]
[400101736,1767113439566,-1762.4652,0.00024591,2]
[400101737,1767113439575,-500.0,0.00024592,2]
[400101738,1767113439584,-974.03,0.00024593,2]
[400101739,1767113439593,-974.03,0.00024593,2]
[400101740,1767113439603,-974.03,0.00024593,2]
[400101741,1767113439612,-974.03,0.00024593,2]
[400101742,1767113439622,-974.03,0.00024593,2]
[400101743,1767113439631,-974.03,0.00024593,2]
[400101744,1767113439641,-974.03,0.00024593,2]
[400101745,1767113439651,-974.03,0.00024593,2]
[400101746,1767113439661,-974.03,0.00024593,2]
[400101747,1767113439671,-500.0,0.00024593,2]
[400101748,1767113439681,-500.0,0.00024594,2]
[400101749,1767113439691,-500.0,0.00024594,2]
[400101750,1767113439700,-1249.49444949,0.00024594,2]
[400101751,1767113439710,-500.0,0.00024596,2]
[400101752,1767113439719,-500.0,0.00024596,2]
[400101753,1767113439729,-500.0,0.00024596,2]
[400101754,1767113439738,-500.0,0.00024596,2]
[400101755,1767113439748,-500.0,0.00024596,2]
[400101756,1767113439758,-500.0,0.00024596,2]
[400101757,1767113439767,-500.0,0.00024596,2]
[400101758,1767113439777,-500.0,0.00024596,2]
[400101759,1767113439786,-500.0,0.00024596,2]
[400101760,1767113439796,-500.0,0.00024596,2]
[400101761,1767113439805,-500.0,0.00024596,2]
[400101762,1767113439816,-205.89138084,0.00024596,2]
[400101763,1767113439825,-500.0,0.00024596,2]
[400101764,1767113439835,-500.0,0.00024596,2]
[400101765,1767113439845,-500.0,0.00024596,2]
[400101766,1767113439855,-500.0,0.00024596,2]
[400101767,1767113439865,-500.0,0.00024596,2]
[400101768,1767113439874,-500.0,0.00024596,2]
[400101769,1767113439884,-500.0,0.00024596,2]
[400101770,1767113439895,-500.0,0.00024596,2]
[400101771,1767113439904,-500.0,0.00024596,2]
[400101772,1767113439914,-500.0,0.00024596,2]
[400101773,1767113439923,-974.03,0.00024597,2]
[400101774,1767113439934,-500.0,0.00024598,2]
[400101775,1767113439944,-500.0,0.00024598,2]
[400101776,1767113439953,-151.49639709,0.00024598,2]
[400101777,1767113439963,-974.03,0.00024598,2]
[400101778,1767113439973,-974.03,0.00024598,2]
[400101779,1767113439983,-974.03,0.00024598,2]
[400101780,1767113439992,-974.03,0.00024598,2]
[400101781,1767113440001,-974.03,0.00024598,2]
[400101782,1767113440011,-974.03,0.00024598,2]
[400101783,1767113440021,-974.03,0.00024598,2]
[400101784,1767113440031,-974.03,0.00024598,2]
[400101785,1767113440041,-974.03,0.00024598,2]
[400101787,1767113440051,-974.03,0.00024598,2]
[400101788,1767113440062,-974.03,0.00024598,2]
[400101789,1767113440071,-974.03,0.00024598,2]
[400101790,1767113440081,-974.03,0.00024598,2]
[400101791,1767113440092,-974.12200227,0.00024598,2]
[400101792,1767113440103,-500.0,0.00024598,2]
[400101794,1767113440112,-500.0,0.00024598,2]
[400101796,1767113440122,-500.0,0.00024598,2]
[400101798,1767113440131,-500.0,0.00024598,2]
[400101799,1767113440141,-500.0,0.00024598,2]
[400101801,1767113440151,-500.0,0.00024598,2]
[400101803,1767113440161,-645.828,0.00024598,2]
[400101805,1767113440173,-323.02040379,0.00024627,2]
[400101807,1767113440183,-200.0,0.00024649,2]
[400101809,1767113440193,-500.0,0.00024649,2]
[400101811,1767113440202,-323.02040379,0.00024673,2]
[400101813,1767113440212,-500.0,0.00024698,2]
[400101815,1767113440222,-500.0,0.00024698,2]
[400101817,1767113440231,-500.0,0.00024698,2]
[400101819,1767113440241,-500.0,0.00024698,2]
[400101821,1767113440250,-19732.32,0.000247,3]
[400101823,1767113440259,-3444.8542639,0.0002471,2]
[400101825,1767113440271,-172.111764,0.0002471,2]
[400101827,1767113440280,-323.02040379,0.00024718,2]
[400101829,1767113440290,-323.02040379,0.00024764,2]
[400101831,1767113440300,-151.0,0.000248,7]
[400101833,1767113440310,-151.0,0.000248,7]
[400101835,1767113440322,-151.0,0.000248,7]
[400101837,1767113440331,-2589.6868864,0.000248,2]
[400101839,1767113440340,-323.02040379,0.00024809,2]
[400101841,1767113440350,-323.02040379,0.00024855,2]
[400101843,1767113440359,-500.0,0.00024866,2]
[400101845,1767113440369,-500.0,0.00024867,2]
[400101847,1767113440379,-500.0,0.00024868,2]
[400101848,1767113440388,-223.2,0.00024868,2]
[400101851,1767113440400,-557.77432225,0.00024868,2]
[400101852,1767113440409,-500.0,0.0002487,2]
[400101854,1767113440420,-500.0,0.0002487,2]
[400101856,1767113440431,-513.16,0.0002487,2]
[400101858,1767113440440,-11138.43526713,0.00024872,2]
[400101860,1767113440449,-6881.56,0.000249,2]
[400101862,1767113440459,-995.14,0.000249,14]
[400101864,1767113440468,-276.91,0.000249,7]
[400101866,1767113440478,-151.0,0.000249,7]
[400101868,1767113440488,-151.0,0.000249,7]
[400101870,1767113440497,-151.0,0.000249,7]
[400101872,1767113440506,-151.0,0.000249,7]
[400101874,1767113440515,-43038.15762728,0.000249,2]
[400101887,1767113440635,-3882.48572128,0.000249,2]
[400101890,1767113440654,-3727.96233935,0.000249,2]
[400101965,1767114078711,5000.0,0.0001277,2]
[400101966,1767114549110,-150.0,0.00013009,2]
[400101967,1767114549135,-604.0,0.00013009,2]
[400101968,1767114549156,-1200.0,0.00013272,2]
[400101969,1767114549178,-687.0,0.00013272,2]
[400101970,1767114549198,-300.0,0.00013272,2]
[400101971,1767114549218,-269.7113098,0.00013273,2]
[400101972,1767114549237,-512.8342929,0.00013273,2]
[400101973,1767114549256,-267.00607037,0.00013273,2]
[400101974,1767114549276,-501.19052166,0.00013273,2]
[400101975,1767114549295,-422.94506622,0.00013273,2]
[400101976,1767114549314,-595.66122954,0.00013273,2]
[400101977,1767114549335,-2523.37652225,0.00013273,2]
[400101978,1767114549355,-185.02516817,0.00013273,2]
[400101979,1767114549378,-300.0,0.00013537,2]
[400101980,1767114549402,-300.0,0.00013537,2]
[400101981,1767114549424,-300.0,0.00013537,2]
[400101982,1767114549446,-300.0,0.00013537,2]
[400101983,1767114549467,-300.0,0.00013537,2]
[400101984,1767114549489,-300.0,0.00013537,2]
[400101985,1767114549511,-300.0,0.00013537,2]
[400101986,1767114549533,-300.0,0.00013537,2]
[400101987,1767114549555,-300.0,0.00013537,2]
[400101988,1767114549577,-300.0,0.00013537,2]
[400101989,1767114549599,-300.0,0.00013537,2]
[400101990,1767114549620,-300.0,0.00013537,2]
[400101991,1767114549642,-300.0,0.00013537,2]
[400101992,1767114549667,-300.0,0.00013537,2]
[400101993,1767114549690,-300.0,0.00013537,2]
[400101994,1767114549709,-407.11553711,0.00013699,2]
[400101995,1767114549729,-420.0,0.00014551,2]
[400101996,1767114549750,-1680.0,0.00014599,2]
[400101997,1767114549771,-177.0,0.00015009,2]
[400101998,1767114549792,-300.0,0.00015953,2]
[400101999,1767114549811,-2351.0,0.00016059,2]
[400102000,1767114549831,-490.32392218,0.00016999,2]
[400102001,1767114554156,-14.35014423,0.00016999,2]
[400102002,1767114554176,-4000.0,0.00017,2]
[400102003,1767114554197,-204.0,0.00017009,2]
[400102004,1767114554217,-3292.0,0.00017665,2]
[400102005,1767114554237,-303.03030305,0.000189,2]
[400102006,1767114554258,-10186.0,0.00019,2]
[400102007,1767114554279,-1745.71617472,0.00019078,2]
[400102008,1767114554301,-500.0,0.00019178,2]
[400102009,1767114554321,-500.0,0.00019178,2]
[400102010,1767114554342,-4609.0,0.00019431,2]
[400102011,1767114554364,-500.0,0.00019996,2]
[400102012,1767114554384,-463.47516561,0.00019996,2]
[400102013,1767114554408,-500.0,0.00019996,2]
[400102014,1767114554432,-500.0,0.00019996,2]
[400102015,1767114554464,-223.8254572,0.00019996,2]
[400102016,1767114554490,-500.0,0.00019996,2]
[400102017,1767114554514,-500.0,0.00019996,2]
[400102018,1767114554537,-500.0,0.00019996,2]
[400102019,1767114554560,-500.0,0.00019996,2]
[400102020,1767114554581,-500.0,0.00019996,2]
[400102021,1767114554602,-500.0,0.00019996,2]
[400102022,1767114554624,-500.0,0.00019996,2]
[400102023,1767114554646,-500.0,0.00019996,2]
[400102024,1767114554667,-500.0,0.00019996,2]
[400102025,1767114554689,-500.0,0.00019996,2]
[400102026,1767114554711,-500.0,0.00019996,2]
[400102027,1767114554733,-500.0,0.00019996,2]
[400102028,1767114554759,-1792.28079187,0.00019996,2]
[400102029,1767114554781,-500.0,0.00019996,2]
[400102030,1767114554802,-500.0,0.00019996,2]
[400102031,1767114554823,-500.0,0.00019996,2]
[400102032,1767114554845,-500.0,0.00019996,2]
[400102033,1767114554866,-1205.82530618,0.00019996,2]
[400102034,1767114570102,-974.03,0.00016999,2]
[400102035,1767114570123,-974.03,0.00019044,2]
[400102036,1767114570143,-586.45548569,0.00019996,2]
[400102037,1767114570163,-486.83439881,0.00019996,2]
[400102038,1767114570184,-1792.28079187,0.00019996,2]
[400102039,1767114570207,-630.34987816,0.00019996,2]
[400102040,1767114570231,-500.0,0.00019996,2]
[400102041,1767114570264,-225.48636496,0.00019996,2]
[400102064,1767114632474,-250.0,0.00017189,2]
[400102065,1767114632484,-672.0,0.00017189,2]
[400102066,1767114632493,-689.88839152,0.00019994,2]
[400102067,1767114632506,-510.11160848,0.00019994,2]
[400102068,1767114632515,-638.03744988,0.00019995,2]
[400102069,1767114632525,-347.46863718,0.00019995,2]
[400102070,1767114632534,-500.0,0.00019995,2]
[400102071,1767114632543,-1736.25750447,0.00019995,2]
[400102072,1767114632552,-500.0,0.00019995,2]
[400102073,1767114632562,-371.73178627,0.00019995,2]
[400102074,1767114632571,-1736.25750447,0.00019995,2]
[400102075,1767114632580,-500.0,0.00019995,2]
[400102076,1767114632589,-1736.25750447,0.00019995,2]
[400102077,1767114632599,-1736.25750447,0.00019995,2]
[400102078,1767114632608,-281.23315238,0.00019995,2]
[400102079,1767114632617,-1736.25750447,0.00019995,2]
[400102080,1767114632627,-1736.25750447,0.00019995,2]
[400102081,1767114632636,-1736.25750447,0.00019995,2]
[400102082,1767114632646,-1736.25750447,0.00019995,2]
[400102083,1767114632655,-1736.25750447,0.00019995,2]
[400102085,1767114632664,-1736.25750447,0.00019995,2]
[400102087,1767114632674,-1736.25750447,0.00019995,2]
[400102089,1767114632683,-1736.25750447,0.00019995,2]
[400102091,1767114632693,-1736.25750447,0.00019995,2]
[400102093,1767114632702,-1736.25750447,0.00019995,2]
[400102095,1767114632711,-1736.25750447,0.00019995,2]
[400102097,1767114632720,-1736.25750447,0.00019995,2]
[400102099,1767114632729,-1736.25750447,0.00019995,2]
[400102101,1767114632738,-1736.25750447,0.00019995,2]
[400102103,1767114632747,-1736.25750447,0.00019995,2]
[400102104,1767114632757,-1736.25750447,0.00019995,2]
[400102107,1767114632767,-1736.25750447,0.00019995,2]
[400102108,1767114632776,-1736.25750447,0.00019995,2]
[400102109,1767114632785,-1736.25750447,0.00019995,2]
[400102110,1767114632795,-1736.25750447,0.00019995,2]
[400102112,1767114632804,-1736.25750447,0.00019995,2]
[400102113,1767114632813,-1736.25750447,0.00019995,2]
[400102115,1767114632822,-1736.25750447,0.00019995,2]
[400102117,1767114632831,-1736.25750447,0.00019995,2]
[400102119,1767114632840,-1736.25750447,0.00019995,2]
[400102121,1767114632850,-1550.61196592,0.00019995,2]
[400102123,1767114632863,-185.64553855,0.00019995,2]
[400102125,1767114632872,-262.16692037,0.00019995,2]
[400102127,1767114632884,-1474.0905841,0.00019995,2]
[400102128,1767114632894,-1256.8615001,0.00019995,2]
[400102147,1767114638451,-552.33065236,0.00016999,2]
[400102148,1767114638462,-479.39600437,0.00019995,2]
[400102149,1767114638478,-1736.25750447,0.00019995,2]
[400102150,1767114638492,-1621.27920798,0.00019995,2]
[400102151,1767114638508,-114.97829649,0.00019995,2]
[400102152,1767114638519,-1736.25750447,0.00019995,2]
[400102153,1767114638528,-1736.25750447,0.00019995,2]
[400102154,1767114638538,-1736.25750447,0.00019995,2]
[400102155,1767114638551,-1736.25750447,0.00019995,2]
[400102156,1767114638560,-1736.25750447,0.00019995,2]
[400102157,1767114638570,-1736.25750447,0.00019995,2]
[400102158,1767114638580,-1736.25750447,0.00019995,2]
[400102159,1767114638590,-1736.25750447,0.00019995,2]
[400102160,1767114638599,-1736.25750447,0.00019995,2]
[400102161,1767114638609,-1736.25750447,0.00019995,2]
[400102162,1767114638619,-1736.25750447,0.00019995,2]
[400102163,1767114638629,-1736.25750447,0.00019995,2]
[400102164,1767114638641,-1736.25750447,0.00019995,2]
[400102165,1767114638660,-1736.25750447,0.00019995,2]
[400102166,1767114638786,-1736.25750447,0.00019995,2]
[400102167,1767114638796,-1736.25750447,0.00019995,2]
[400102168,1767114638806,-1736.25750447,0.00019995,2]
[400102169,1767114638816,-1736.25750447,0.00019995,2]
[400102170,1767114638826,-1736.25750447,0.00019995,2]
[400102171,1767114638835,-1736.25750447,0.00019995,2]
[400102172,1767114638845,-1736.25750447,0.00019995,2]
[400102173,1767114638855,-1736.25750447,0.00019995,2]
[400102174,1767114638864,-1736.25750447,0.00019995,2]
[400102175,1767114638874,-1736.25750447,0.00019995,2]
[400102176,1767114638884,-1736.25750447,0.00019995,2]
[400102177,1767114638893,-1713.85418182,0.00019995,2]
[400102178,1767114638901,-1713.85418182,0.00019995,2]
[400102179,1767114638907,-1713.85418182,0.00019995,2]
[400102180,1767114638914,-1713.85418182,0.00019995,2]
[400102181,1767114638921,-1713.85418182,0.00019995,2]
[400102182,1767114638928,-1713.85418182,0.00019995,2]
[400102183,1767114638936,-1713.85418182,0.00019995,2]
[400102184,1767114638944,-1713.85418182,0.00019995,2]
[400102185,1767114638951,-1713.85418182,0.00019995,2]
[400102186,1767114638958,-1713.85418182,0.00019995,2]
[400102187,1767114638964,-1713.85418182,0.00019995,2]
[400102188,1767114638971,-1713.85418182,0.00019995,2]
[400102189,1767114638978,-1713.85418182,0.00019995,2]
[400102190,1767114638986,-1564.98487772,0.00019995,2]
[400102191,1767114638995,-148.8693041,0.00019995,2]
[400102192,1767114639002,-1713.85418182,0.00019995,2]
[400102193,1767114639010,-1713.85418182,0.00019995,2]
[400102194,1767114639019,-1713.85418182,0.00019995,2]
[400102195,1767114639025,-1713.85418182,0.00019995,2]
[400102196,1767114639034,-1713.85418182,0.00019995,2]
[400102197,1767114639044,-1713.85418182,0.00019995,2]
[400102198,1767114639053,-1713.85418182,0.00019995,2]
[400102199,1767114639062,-1713.85418182,0.00019995,2]
[400102200,1767114639072,-1713.85418182,0.00019995,2]
[400102201,1767114639081,-1713.85418182,0.00019995,2]
[400102202,1767114639089,-1713.85418182,0.00019995,2]
[400102203,1767114639099,-1713.85418182,0.00019995,2]
[400102204,1767114639108,-1713.85418182,0.00019995,2]
[400102205,1767114639118,-1713.85418182,0.00019995,2]
[400102206,1767114639127,-1713.85418182,0.00019995,2]
[400102207,1767114639138,-1713.85418182,0.00019995,2]
[400102208,1767114639148,-1713.85418182,0.00019995,2]
[400102209,1767114639157,-974.03,0.00019998,2]
[400102210,1767114639167,-974.03,0.00019998,2]
[400102211,1767114639176,-974.03,0.00019998,2]
[400102212,1767114639186,-974.03,0.00019998,2]
[400102213,1767114639196,-974.03,0.00019998,2]
[400102214,1767114639206,-974.03,0.00019998,2]
[400102215,1767114639215,-974.03,0.00019998,2]
[400102216,1767114639225,-974.03,0.00019998,2]
[400102217,1767114639235,-500.0,0.00019999,2]
[400102218,1767114639244,-502.22066263,0.00019999,2]
[400102219,1767114639254,-500.0,0.00019999,2]
[400102220,1767114639263,-500.0,0.00019999,2]
[400102221,1767114639273,-6000.0,0.0002,2]
[400102222,1767114639283,-995.14,0.0002,2]
[400102223,1767114639293,-163.76,0.0002,2]
[400102224,1767114639303,-300.0,0.00020394,2]
[400102225,1767114639313,-300.0,0.00020394,2]
[400102226,1767114639323,-300.0,0.00020394,2]
[400102227,1767114639333,-300.0,0.00020394,2]
[400102228,1767114639343,-300.0,0.00020394,2]
[400102229,1767114639353,-300.0,0.00020394,2]
[400102230,1767114639363,-300.0,0.00020394,2]
[400102231,1767114639373,-300.0,0.00020394,2]
[400102232,1767114639383,-300.0,0.00020394,2]
[400102233,1767114639393,-300.0,0.00020394,2]
[400102234,1767114639403,-300.0,0.00020394,2]
[400102235,1767114639412,-300.0,0.00020394,2]
[400102236,1767114639422,-300.0,0.00020394,2]
[400102237,1767114639435,-300.0,0.00020394,2]
[400102238,1767114639444,-300.0,0.00020394,2]
[400102239,1767114639454,-600.0,0.00020394,2]
[400102240,1767114639464,-1680.0,0.00021876,2]
[400102241,1767114639476,-500.0,0.00021917,2]
[400102242,1767114639485,-500.0,0.00021917,2]
[400102243,1767114639495,-500.0,0.00021917,2]
[400102244,1767114639507,-1249.49444949,0.00021917,2]
[400102245,1767114639517,-588.47770235,0.00021917,2]
[400102246,1767114639526,-500.0,0.00021917,2]
[400102247,1767114639536,-500.0,0.00021917,2]
[400102248,1767114639547,-205.89138084,0.00021917,2]